fUSD/lending_fUSD_20251108
["ID","MTS","AMOUNT","RATE_DAILY","PERIOD"]
[393396392,1762585832858,-500.0,0.00016474,2]
[393396394,1762585832868,-500.0,0.00016474,2]
[393396395,1762585832880,-500.0,0.00016474,2]
[393396398,1762585832890,-500.0,0.00016474,2]
[393396400,1762585832899,-500.0,0.00016474,2]
[393396402,1762585832909,-500.0,0.00016474,2]
[393396404,1762585832918,-500.0,0.00016474,2]
[393396406,1762585832927,-500.0,0.00016474,2]
[393396408,1762585832938,-178.48547142,0.00016474,2]
[393396410,1762585832948,-500.0,0.00016474,2]
[393396412,1762585832958,-500.0,0.00016474,2]
[393396414,1762585832969,-500.0,0.00016474,2]
[393396416,1762585832978,-500.0,0.00016474,2]
[393396417,1762585832987,-500.0,0.00016474,2]
[393396420,1762585832997,-500.0,0.00016474,2]
[393396422,1762585833007,-500.0,0.00016474,2]
[393396425,1762585833028,-500.0,0.00016474,2]
[393396427,1762585833043,-500.0,0.00016474,2]
[393396430,1762585833054,-550.00000001,0.00016474,2]
[393396432,1762585833064,-500.0,0.00016474,2]
[393396434,1762585833074,-500.0,0.00016474,2]
[393396436,1762585833084,-500.0,0.00016474,2]
[393396438,1762585833094,-500.0,0.00016474,2]
[393396440,1762585833105,-81673.52949942,0.00016475,2]
[393396442,1762585833120,-37933.34806745,0.00016475,2]
[393396445,1762585833139,-5729.34082991,0.00016475,2]
[393396448,1762585833151,-4201.65523545,0.00016475,2]
[393396450,1762585833163,-1233.00767407,0.00016475,2]
[393396564,1762585838192,-151.0,0.00016475,2]
[393396565,1762585838202,-193.10042181,0.00016475,2]
[393396566,1762585838213,-9220.01560596,0.00016475,2]
[393396567,1762585838234,-1073.55147445,0.00016475,2]
[393396568,1762585838290,-9840.0,0.00016475,2]
[393396569,1762585838374,-3591.08664557,0.00016475,2]
[393396573,1762585840652,-1.7e-07,0.00016475,2]
[393396574,1762585840904,-160.917018,0.00016475,2]
[393396575,1762585840914,-2069.082992,0.00016475,2]
[393396576,1762585840926,-10661.0482372,0.00016475,2]
[393396577,1762585840939,-14517.13673284,0.00016475,2]
[393396578,1762585840951,-2135.64059441,0.00016475,2]
[393396599,1762585843981,-151.0,0.00016475,2]
[393396600,1762585843992,-302.0,0.00016475,2]
[393396601,1762585844005,-20512.01084885,0.00016475,2]
[393396606,1762585846327,-381.67576988,0.00016475,2]
[393396607,1762585846340,-287.25,0.00016475,2]
[393396608,1762585846351,-503.76864472,0.00016475,2]
[393396609,1762585846363,-257.71939921,0.00016475,2]
[393396610,1762585846685,-10469.87166085,0.00016475,2]
[393396611,1762585846698,-1000.0090106,0.00016475,2]
[393396707,1762585936761,5431.52339229,0.00015584,2]
[393396708,1762585936784,179.12660771,0.00015584,2]
[393396709,1762585952655,500.0,0.00015584,2]
[393396710,1762585984548,500.0,0.00015926,2]
[393396711,1762586047170,1013.80030504,0.0003907,120]
[393396712,1762586204120,1580.36,0.00015548,2]
[393396713,1762586234162,-2000.0,0.00016343,2]
[393396714,1762586234192,-200.0,0.00016343,2]
[393396715,1762586234221,-195.0,0.00016359,2]
[393396716,1762586234250,-1200.0,0.00016374,2]
[393396717,1762586234279,-300.0,0.00016374,2]
[393396718,1762586234307,-929.0539,0.00016375,2]
[393396719,1762586234337,-117.4931,0.00016375,2]
[393396720,1762586234597,-116.916,0.00016375,2]
[393396721,1762586234625,-3075.8513,0.00016375,2]
[393396722,1762586234662,-3614.4754,0.00016375,2]
[393396723,1762586234689,-271.0592,0.00016375,2]
[393396724,1762586234927,-2228.9408,0.00016375,2]
[393396725,1762586235022,-3930.81536638,0.00016379,2]
[393396726,1762586235202,-2138.37926724,0.00016379,2]
[393396727,1762586235231,-550.0,0.00016419,2]
[393396728,1762586235258,-2126.44162552,0.0001642,2]
[393396729,1762586235367,-370.36821448,0.0001642,2]
[393396730,1762586235397,-2496.80984,0.0001642,2]
[393396731,1762586235426,-1768.84404104,0.0001646,2]
[393396732,1762586235540,-727.96580896,0.0001646,2]
[393396733,1762586235568,-1200.0,0.00016472,2]
[393396734,1762586235596,-151.0,0.00016472,2]
[393396735,1762586235623,-500.0,0.00016473,2]
[393396736,1762586235651,-500.7693364,0.00016473,2]
[393396737,1762586235678,-649.28343882,0.00016473,2]
[393396738,1762586235706,-257.23129702,0.00016474,2]
[393396739,1762586235919,-500.0,0.00016474,2]
[393396740,1762586235948,-500.0,0.00016474,2]
[393396741,1762586236007,-500.0,0.00016474,2]
[393396742,1762586236037,-245.10049906,0.00016474,2]
[393396743,1762586236066,-580.0728714,0.00016474,2]
[393396744,1762586236094,-500.0,0.00016474,2]
[393396745,1762586236122,-151.0,0.00016475,2]
[393396746,1762586236247,-1791.917727,0.00016475,2]
[393396747,1762586236346,-3583.835454,0.00016475,2]
[393396748,1762586236391,-2832.339092,0.00016475,2]
[393396749,1762586236420,-321.00407575,0.00016475,2]
[393396750,1762586236958,200.0,0.00015538,2]
[393396751,1762586237969,-151.0,0.00016475,2]
[393396752,1762586237998,-109.09943671,0.00016475,2]
[393396753,1762586240543,-151.0,0.00016472,2]
[393396754,1762586241532,-174.46272596,0.00016475,2]
[393396755,1762586241561,-10000.01,0.00016475,2]
[393396756,1762586241608,-10000.01,0.00016475,2]
[393396757,1762586241929,-229.34279301,0.00016475,2]
[393396758,1762586246055,-10000.01,0.00016475,2]
[393396759,1762586246187,-10000.01,0.00016475,2]
[393396760,1762586246300,-10000.01,0.00016475,2]
[393396761,1762586246430,-10000.01,0.00016475,2]
[393396762,1762586246539,-10000.01,0.00016475,2]
[393396763,1762586246774,-10000.01,0.00016475,2]
[393396764,1762586246897,-10000.01,0.00016475,2]
[393396765,1762586247041,-10000.01,0.00016475,2]
[393396766,1762586247165,-10000.01,0.00016475,2]
[393396767,1762586247425,-10000.01,0.00016475,2]
[393396768,1762586247543,-10000.01,0.00016475,2]
[393396769,1762586247837,-10000.01,0.00016475,2]
[393396770,1762586248215,-10000.01,0.00016475,2]
[393396771,1762586264365,-504.46223278,0.00016474,2]
[393396772,1762586264398,-500.0,0.00016474,2]
[393396773,1762586264429,-306.0,0.00016474,2]
[393396774,1762586264461,-307.10334844,0.00016474,2]
[393396775,1762586265081,-6764.87883756,0.00016475,2]
[393396776,1762586265159,-10000.01,0.00016475,2]
[393396777,1762586265173,-10000.01,0.00016475,2]
[393396778,1762586265187,-10000.01,0.00016475,2]
[393396779,1762586265217,-10000.01,0.00016475,2]
[393396780,1762586265231,-5129.27728392,0.00016475,2]
[393396781,1762586265640,-160.19533334,0.00016479,2]
[393396782,1762586267068,-189.15036488,0.00016479,2]
[393396783,1762586270244,-150.65430178,0.00016479,2]
[393396784,1762586270275,-901.13499798,0.0001648,2]
[393396785,1762586270304,-500.0,0.00016493,2]
[393396786,1762586270335,-2496.80984,0.0001652,2]
[393396787,1762586270413,-1902.81172048,0.00016548,2]
[393396788,1762586270448,-4166.38291307,0.00016548,2]
[393396789,1762586270479,-294.58035796,0.0001657,2]
[393396790,1762586270508,-500.0,0.00016573,2]
[393396791,1762586270580,-500.0,0.00016573,2]
[393396792,1762586270614,-500.0,0.00016573,2]
[393396793,1762586270648,-500.0,0.00016573,2]
[393396794,1762586270681,-500.0,0.00016573,2]
[393396795,1762586270714,-500.0,0.00016573,2]
[393396796,1762586270753,-500.0,0.00016573,2]
[393396797,1762586270788,-500.0,0.00016573,2]
[393396798,1762586270823,-500.0,0.00016573,2]
[393396799,1762586270857,-500.0,0.00016573,2]
[393396800,1762586270889,-500.0,0.00016573,2]
[393396801,1762586271004,-500.0,0.00016573,2]
[393396802,1762586271040,-500.0,0.00016573,2]
[393396803,1762586271074,-500.0,0.00016573,2]
[393396804,1762586271107,-500.0,0.00016573,2]
[393396805,1762586271141,-500.0,0.00016573,2]
[393396806,1762586271174,-500.0,0.00016573,2]
[393396807,1762586271207,-500.0,0.00016573,2]
[393396808,1762586271240,-500.0,0.00016573,2]
[393396809,1762586271275,-500.0,0.00016573,2]
[393396810,1762586271308,-500.0,0.00016573,2]
[393396811,1762586271628,-78.09345794,0.00016474,2]
[393396812,1762586271643,-0.01,0.00016474,2]
[393396813,1762586271677,-157.05196529,0.00016474,2]
[393396814,1762586273319,-264.84457677,0.00016474,2]
[393396815,1762586273355,-500.0,0.00016573,2]
[393396816,1762586273391,-400.67065736,0.00016573,2]
[393396817,1762586273426,-500.0,0.00016573,2]
[393396818,1762586273462,-500.0,0.00016573,2]
[393396819,1762586273497,-500.0,0.00016573,2]
[393396820,1762586273531,-500.0,0.00016573,2]
[393396821,1762586273566,-500.0,0.00016573,2]
[393396822,1762586273601,-500.0,0.00016573,2]
[393396823,1762586273634,-500.0,0.00016573,2]
[393396824,1762586273669,-168.97953174,0.00016573,2]
[393396825,1762586273761,-331.02046826,0.00016573,2]
[393396826,1762586273796,-500.0,0.00016573,2]
[393396827,1762586273833,-500.0,0.00016573,2]
[393396828,1762586273867,-500.0,0.00016573,2]
[393396829,1762586273902,-500.0,0.00016573,2]
[393396830,1762586274174,-505.84821429,0.00016573,2]
[393396831,1762586274213,-505.84821429,0.00016573,2]
[393396832,1762586274253,-505.84821429,0.00016573,2]
[393396833,1762586274290,-505.84821429,0.00016573,2]
[393396834,1762586274327,-505.84821429,0.00016573,2]
[393396835,1762586274450,-505.84821429,0.00016573,2]
[393396836,1762586274486,-505.84821429,0.00016573,2]
[393396837,1762586274521,-505.84821429,0.00016573,2]
[393396838,1762586274555,-505.84821429,0.00016573,2]
[393396839,1762586274590,-505.84821429,0.00016573,2]
[393396840,1762586274625,-505.84821429,0.00016573,2]
[393396841,1762586274659,-505.84821429,0.00016573,2]
[393396842,1762586274692,-505.84821429,0.00016573,2]
[393396843,1762586274729,-505.84821429,0.00016573,2]
[393396844,1762586274762,-388.89392849,0.00016573,2]
[393396845,1762586275415,-116.9542858,0.00016573,2]
[393396846,1762586275424,-110.50738884,0.00016573,2]
[393396847,1762586275444,-395.34082545,0.00016573,2]
[393396848,1762586275453,-110.50738884,0.00016573,2]
[393396849,1762586276339,-395.34082545,0.00016573,2]
[393396850,1762586276376,-505.84821429,0.00016573,2]
[393396851,1762586276411,-505.84821429,0.00016573,2]
[393396852,1762586276446,-505.84821429,0.00016573,2]
[393396853,1762586276482,-505.84821429,0.00016573,2]
[393396854,1762586276516,-505.84821429,0.00016573,2]
[393396855,1762586276552,-505.84821429,0.00016573,2]
[393396856,1762586276585,-505.84821429,0.00016573,2]
[393396857,1762586276619,-505.84821429,0.00016573,2]
[393396858,1762586276652,-505.84821429,0.00016573,2]
[393396859,1762586276820,-104.06049188,0.00016573,2]
[393396860,1762586279394,-401.78772241,0.00016573,2]
[393396861,1762586279430,-505.84821429,0.00016573,2]
[393396862,1762586279471,-505.84821429,0.00016573,2]
[393396863,1762586279507,-505.84821429,0.00016573,2]
[393396864,1762586279541,-505.84821429,0.00016573,2]
[393396865,1762586279577,-505.84821429,0.00016573,2]
[393396866,1762586279613,-505.84821429,0.00016573,2]
[393396867,1762586279648,-505.84821429,0.00016573,2]
[393396868,1762586279683,-505.84821429,0.00016573,2]
[393396869,1762586279718,-505.84821429,0.00016573,2]
[393396870,1762586279817,-505.84821429,0.00016573,2]
[393396871,1762586279852,-505.84821429,0.00016573,2]
[393396872,1762586279888,-505.84821428,0.00016573,2]
[393396873,1762586279923,-505.84821428,0.00016573,2]
[393396874,1762586279966,-505.84821428,0.00016573,2]
[393396875,1762586280002,-505.84821428,0.00016573,2]
[393396876,1762586280040,-505.84821428,0.00016573,2]
[393396877,1762586280083,-505.84821428,0.00016573,2]
[393396878,1762586280124,-505.84821428,0.00016573,2]
[393396879,1762586280162,-388.89392864,0.00016573,2]
[393396880,1762586280266,-116.95428564,0.00016573,2]
[393396881,1762586280303,-505.84821428,0.00016573,2]
[393396882,1762586280342,-505.84821428,0.00016573,2]
[393396883,1762586280379,-505.84821428,0.00016573,2]
[393396884,1762586280421,-505.84821428,0.00016573,2]
[393396885,1762586280456,-505.84821428,0.00016573,2]
[393396886,1762586280726,-505.84821428,0.00016573,2]
[393396887,1762586280767,-505.84821428,0.00016573,2]
[393396888,1762586280801,-505.84821428,0.00016573,2]
[393396889,1762586280838,-505.84821428,0.00016573,2]
[393396890,1762586280869,-151.0,0.00016573,2]
[393396891,1762586280979,-483.590505,0.00016573,2]
[393396892,1762586281010,-483.590505,0.00016573,2]
[393396893,1762586281040,-483.590505,0.00016573,2]
[393396894,1762586281075,-755.84821427,0.00016573,2]
[393396895,1762586281103,-151.0,0.00016573,2]
[393396896,1762586281140,-755.84821427,0.00016573,2]
[393396897,1762586281170,-483.590505,0.00016573,2]
[393396898,1762586281201,-151.0,0.00016573,2]
[393396899,1762586281231,-151.0,0.00016573,2]
[393396900,1762586281262,-151.0,0.00016573,2]
[393396901,1762586281292,-852.5332,0.00016573,2]
[393396902,1762586281322,-43.82670292,0.00016573,2]
[393396903,1762586282137,-523.12785236,0.0001641,2]
[393396904,1762586282154,-151.0,0.0001641,2]
[393396907,1762586415653,-282.70520303,0.00016135,2]
[393396908,1762586417703,-310.66408936,0.00016135,2]
[393396909,1762586419190,-101.63070761,0.00016135,2]
[393396910,1762586419214,-178.46375463,0.00016217,2]
[393396911,1762586430671,-43.42243857,0.00016217,2]
[393396912,1762586430696,-231.83677881,0.00016339,2]
[393396913,1762586433191,-219.90553776,0.0001631,2]
[393396914,1762586434800,-323.54773269,0.0001631,2]
[393396915,1762586477700,999.0,0.00015593,3]
[393396917,1762586510091,-894.01797964,0.00016238,2]
[393396918,1762586510122,-3900.07160433,0.0001631,2]
[393396919,1762586510160,-411.83083206,0.0001631,2]
[393396920,1762586512973,-324.56753934,0.0001631,2]
[393396921,1762586513004,-307.83626985,0.0001631,2]
[393396922,1762586513035,-300.0,0.00016338,2]
[393396923,1762586513069,-3787.03916043,0.00016339,2]
[393396924,1762586513353,-561.12406076,0.00016339,2]
[393396925,1762586516037,-300.0,0.00016373,2]
[393396926,1762586516068,-300.0,0.00016374,2]
[393396927,1762586516099,-1200.0,0.00016374,2]
[393396928,1762586516129,-3179.499,0.00016374,2]
[393396929,1762586516209,-41.012,0.00016374,2]
[393396930,1762586518991,-140.138,0.00016374,2]
[393396931,1762586519031,-500.0,0.00016374,2]
[393396932,1762586519067,-500.0,0.00016374,2]
[393396933,1762586519101,-500.0,0.00016374,2]
[393396934,1762586519134,-500.0,0.00016374,2]
[393396935,1762586519166,-500.0,0.00016374,2]
[393396936,1762586519200,-500.0,0.00016374,2]
[393396937,1762586519233,-500.0,0.00016374,2]
[393396938,1762586519265,-500.0,0.00016374,2]
[393396939,1762586519302,-500.0,0.00016374,2]
[393396940,1762586519340,-219.734,0.00016374,2]
[393396941,1762586519502,-280.266,0.00016374,2]
[393396942,1762586606902,151.96,0.00039078,30]
[393396943,1762586619479,800.0,0.0003,120]
[393396944,1762586672487,700.0,0.0003,120]
[393396945,1762586780017,-269.35673611,0.0001631,2]
[393396946,1762586780050,-1200.0,0.00016339,2]
[393396947,1762586780083,-300.0,0.00016339,2]
[393396948,1762586780166,-6461.29652778,0.0001634,2]
[393396949,1762586784935,250.0,0.0001559,2]
[393396950,1762586785983,-10000.01,0.0001634,2]
[393396951,1762586871214,18661.13765577,0.00015,2]
[393396952,1762586871241,50000.0,0.00015,2]
[393396953,1762586871265,50000.0,0.00015,2]
[393396954,1762586871293,50081.11799412,0.00015,2]
[393396955,1762586916305,10000.01,0.00015,3]
[393396956,1762586916330,10000.01,0.00015,3]
[393396957,1762586916354,10000.01,0.00015,3]
[393396958,1762586916379,10000.01,0.00015,3]
[393396959,1762586916403,10000.01,0.00015,3]
[393396960,1762586916428,10000.01,0.00015,3]
[393396961,1762586916452,10000.01,0.00015,3]
[393396962,1762586916476,8022.40711962,0.00015,3]
[393396963,1762586955891,-247.86902167,0.00015538,2]
[393396964,1762586961140,-4986.043314,0.00015538,2]
[393396979,1762587031395,-151.0,0.00015535,2]
[393396982,1762587031405,-300.0,0.00015537,2]
[393396984,1762587031415,-1200.0,0.00015537,2]
[393396985,1762587031425,-300.0,0.00015537,2]
[393396986,1762587031434,-11796.53908174,0.00015538,2]
[393396987,1762587031487,-1542.02411124,0.00015538,2]
[393396988,1762587031498,-50733.35447135,0.00015538,2]
[393396989,1762587031509,-372.87280614,0.00015807,2]
[393396990,1762587031519,-1200.0,0.00016199,2]
[393396991,1762587031528,-268.0,0.000162,2]
[393396992,1762587031537,-336.07978537,0.0001631,2]
[393396993,1762587031547,-6999.49071627,0.0001631,2]
[393396994,1762587031557,-276.23318303,0.00016328,2]
[393396995,1762587031567,-1000.0,0.00016374,2]
[393396996,1762587031576,-1371.58,0.00016374,2]
[393396997,1762587031586,-500.0,0.00016374,2]
[393396998,1762587031595,-500.0,0.00016374,2]
[393396999,1762587031605,-518.40919141,0.00016374,2]
[393397000,1762587031615,-500.0,0.00016374,2]
[393397001,1762587031624,-500.0,0.00016374,2]
[393397002,1762587031634,-500.0,0.00016374,2]
[393397003,1762587031644,-500.0,0.00016374,2]
[393397004,1762587031653,-500.0,0.00016374,2]
[393397005,1762587031663,-500.0,0.00016374,2]
[393397006,1762587031673,-549.09860976,0.00016374,2]
[393397007,1762587031682,-500.0,0.00016374,2]
[393397008,1762587031691,-500.0,0.00016374,2]
[393397009,1762587031701,-500.0,0.00016374,2]
[393397010,1762587031711,-500.0,0.00016374,2]
[393397011,1762587031720,-500.0,0.00016374,2]
[393397012,1762587031730,-500.0,0.00016374,2]
[393397013,1762587031739,-500.0,0.00016374,2]
[393397014,1762587031749,-500.0,0.00016374,2]
[393397015,1762587031759,-500.0,0.00016374,2]
[393397016,1762587031769,-500.0,0.00016374,2]
[393397017,1762587031778,-500.0,0.00016374,2]
[393397019,1762587031788,-500.0,0.00016374,2]
[393397021,1762587031797,-500.0,0.00016374,2]
[393397022,1762587031807,-500.0,0.00016374,2]
[393397023,1762587031817,-500.0,0.00016374,2]
[393397025,1762587031826,-177374.2253589,0.00016375,2]
[393397027,1762587031838,-20610.20077279,0.00016375,2]
[393397029,1762587031849,-5040.35291045,0.00016375,2]
[393397030,1762587031884,-4423.2,0.00016375,2]
[393397031,1762587037496,-2473.65091241,0.00016375,2]
[393397097,1762587039564,-385.3009383,0.00016375,2]
[393397098,1762587039714,-723.56500005,0.00016375,2]
[393397099,1762587039738,-5604.21271215,0.00016375,2]
[393397120,1762587045782,-5189.67908846,0.00016375,2]
[393397121,1762587045944,-353.9399762,0.00016375,2]
[393397123,1762587252103,500.0,0.00039078,120]
[393397124,1762587252353,500.0,0.00039078,120]
[393397125,1762587280487,615.1120416,0.00039078,120]
[393397131,1762587307437,500.0,0.00039078,120]
[393397135,1762587465695,-151.0,0.00015593,2]
[393397136,1762587465721,-23.156914,0.00015755,2]
[393397137,1762587496738,-151.0,0.00015611,2]
[393397138,1762587496760,-69.04344154,0.00015675,2]
[393397139,1762587526209,-151.0,0.00015597,2]
[393397140,1762587526232,-0.01690153,0.00015675,2]
[393397143,1762587705644,-195.0,0.00015352,2]
[393397144,1762587707218,-163.16,0.00015352,2]
[393397145,1762587708970,-316.44287748,0.00015352,2]
[393397146,1762587711086,-179.57090423,0.00015352,2]
[393397147,1762587716885,-163.33,0.00015352,2]
[393397148,1762587719668,-192.1356592,0.00015352,2]
[393397149,1762587726180,-161.06834118,0.00015352,2]
[393397150,1762587728569,-183.97856495,0.00015352,2]
[393397151,1762587732800,-348.07437606,0.00015352,2]
[393397152,1762587737155,-335.66751489,0.00015352,2]
[393397153,1762587740864,-464.44003625,0.00015352,2]
[393397154,1762587744967,-293.28672255,0.00015352,2]
[393397155,1762587749580,-234.18154421,0.00015352,2]
[393397156,1762587752562,-207.0938483,0.00015352,2]
[393397157,1762587757591,-369.19297188,0.00015352,2]
[393397158,1762587760121,-288.21410473,0.00015352,2]
[393397159,1762587765242,-316.55536797,0.00015352,2]
[393397160,1762587768871,-382.22378156,0.00015352,2]
[393397161,1762587771891,308.61560166,0.00039079,30]
[393397162,1762587775095,-267.53273093,0.00015352,2]
[393397163,1762587855723,-154.12271487,0.00015165,2]
[393397164,1762587862027,-244.37199697,0.00015165,2]
[393397165,1762587863874,-315.18396131,0.00015165,2]
[393397166,1762587869033,-211.78589527,0.00015165,2]
[393397167,1762587885675,-212.72579284,0.00015165,2]
[393397168,1762587887750,-287.27420716,0.00015165,2]
[393397169,1762587892884,-340.64062819,0.00015165,2]
[393397170,1762587900470,-230.60235556,0.00015165,2]
[393397171,1762587902567,-418.757019,0.00015145,2]
[393397172,1762587904470,-377.73012896,0.00015145,2]
[393397173,1762587909497,-186.39494075,0.00015136,2]
[393397174,1762587913874,-208.4598231,0.00015136,2]
[393397175,1762587918241,-162.62566388,0.00015136,2]
[393397176,1762587920809,-442.51957227,0.00015136,2]
[393397177,1762587920832,-16.32707143,0.00015145,2]
[393397178,1762587926249,-163.17,0.00015135,2]
[393397179,1762587926273,-145.89232654,0.00015145,2]
[393397180,1762587927329,50000.0,0.0003908,30]
[393397181,1762587945666,-6.58345407,0.00015145,2]
[393397182,1762587945690,-279.63162526,0.00015165,2]
[393397183,1762587950390,-190.54289006,0.00015165,2]
[393397184,1762587953207,-185.66605824,0.00015165,2]
[393397185,1762587958140,-189.43556377,0.00015165,2]
[393397186,1762587960128,-284.58310169,0.00015165,2]
[393397187,1762587963671,-366.42155809,0.00015165,2]
[393397188,1762587965727,-200.88651069,0.00015165,2]
[393397189,1762587969684,-256.27784071,0.00015165,2]
[393397190,1762587973508,-151.0,0.00015165,2]
[393397191,1762587975556,-203.83496114,0.00015165,2]
[393397192,1762587978230,-344.49787618,0.00015165,2]
[393397193,1762587980228,-614.42206076,0.00015165,2]
[393397194,1762587982355,-151.0,0.00015165,2]
[393397195,1762587983829,-179.84866091,0.00015165,2]
[393397196,1762587985275,-594.73,0.00015165,2]
[393397197,1762587986720,-180.43313349,0.00015165,2]
[393397198,1762587989252,-181.52642324,0.00015165,2]
[393397199,1762587999132,-206.41746299,0.00015165,2]
[393397200,1762588005652,-166.66,0.00015165,2]
[393397201,1762588010467,-439.47672061,0.00015165,2]
[393397202,1762588010492,-34.85737293,0.00015247,2]
[393397203,1762588014033,-239.517914,0.00015247,2]
[393397204,1762588016077,-206.8342872,0.00015247,2]
[393397205,1762588018088,-167.02259042,0.00015247,2]
[393397206,1762588023394,-154.74173552,0.00015247,2]
[393397207,1762588029848,-164.46490794,0.00015247,2]
[393397208,1762588031874,-176.33,0.00015247,2]
[393397209,1762588037002,2500.0,0.000159,5]
[393397210,1762588050658,-268.31203455,0.00015247,2]
[393397211,1762588054635,-160.51980076,0.00015247,2]
[393397212,1762588057090,-173.36051182,0.00015247,2]
[393397213,1762588057979,166.66,0.00014355,2]
[393397214,1762588058193,166.66,0.00014657,2]
[393397215,1762588058388,166.66,0.00014959,2]
[393397216,1762588058633,-271.48907211,0.00015247,2]
[393397217,1762588060293,-159.74,0.00015247,2]
[393397218,1762588062381,-245.05108143,0.00015247,2]
[393397219,1762588064561,-151.0,0.00015247,2]
[393397220,1762588080745,-151.0,0.00015247,2]
[393397221,1762588085805,-166.66,0.00015247,2]
[393397222,1762588089418,-151.00466367,0.00015247,2]
[393397223,1762588093617,-156.315875,0.00015247,2]
[393397224,1762588110677,-181.504125,0.00015247,2]
[393397225,1762588113263,-162.18,0.00015247,2]
[393397226,1762588116842,-296.94196024,0.00015247,2]
[393397227,1762588119984,-177.4,0.00015247,2]
[393397228,1762588124673,-164.61476327,0.00015247,2]
[393397229,1762588140728,-269.711335,0.00015171,2]
[393397230,1762588140751,-174.32606739,0.00015247,2]
[393397231,1762588186201,-173.29557802,0.00015152,2]
[393397232,1762588189702,-123.64638223,0.00015152,2]
[393397233,1762588189725,-142.91109379,0.00015247,2]
[393397234,1762588215673,-26.75014296,0.00015247,2]
[393397235,1762588215698,-124.24985704,0.0001525,2]
[393397242,1762588231783,-70.75014296,0.0001525,2]
[393397243,1762588231793,-154.33445876,0.00015252,2]
[393397244,1762588231804,-166.66,0.00015262,2]
[393397245,1762588231814,-108.53065363,0.00015352,2]
[393397246,1762588231823,-151.0,0.00015526,2]
[393397247,1762588231833,-151.0,0.00015539,2]
[393397248,1762588231843,-151.0,0.00015557,2]
[393397249,1762588231852,-166.66,0.00015564,2]
[393397250,1762588231862,-151.0,0.00015568,2]
[393397251,1762588231872,-145.843086,0.00015755,2]
[393397252,1762588231881,-169.0,0.00015781,2]
[393397253,1762588231890,-169.0,0.00015829,2]
[393397254,1762588231900,-166.66,0.00015866,2]
[393397255,1762588231910,-169.0,0.00015919,2]
[393397256,1762588231920,-169.0,0.00015957,2]
[393397257,1762588231929,-221.8861932,0.0001596,2]
[393397258,1762588231939,-221.91904003,0.00015985,2]
[393397259,1762588231948,-1200.0,0.00015992,2]
[393397260,1762588231958,-1200.0,0.00015993,2]
[393397261,1762588231968,-300.0,0.00015993,2]
[393397262,1762588231977,-300.0,0.00015993,2]
[393397263,1762588231987,-298.0,0.00015993,2]
[393397264,1762588231997,-154.33445876,0.00015994,2]
[393397265,1762588232006,-150.0,0.00015994,2]
[393397266,1762588232016,-409.29529563,0.00015995,2]
[393397267,1762588232041,-8079.62391009,0.00015995,2]
[393397268,1762588232051,-440.58882839,0.00015995,2]
[393397269,1762588232061,-314.25214019,0.00015995,2]
[393397270,1762588232071,-2500.0,0.00015995,2]
[393397271,1762588232080,-279.8372,0.00015995,2]
[393397272,1762588232089,-162.64504378,0.00016,2]
[393397273,1762588232100,-698.68,0.00016,2]
[393397274,1762588232110,-169.11,0.00016,2]
[393397275,1762588232119,-698.68,0.00016,2]
[393397276,1762588232129,-698.68,0.00016,2]
[393397277,1762588232139,-698.68,0.00016,2]
[393397278,1762588232148,-166.67,0.00016011,2]
[393397279,1762588232158,-894.01797964,0.00016027,2]
[393397280,1762588232168,-325.99061322,0.00016073,2]
[393397281,1762588232178,-151.0,0.00016085,2]
[393397282,1762588232187,-151.0,0.00016085,2]
[393397283,1762588232196,-151.0,0.00016085,2]
[393397284,1762588232205,-151.0,0.00016085,2]